fUST/lending_fUST_20241021
["ID","MTS","AMOUNT","RATE_DAILY","PERIOD"]
[340604751,1729523445116,-1433.34,0.00016438,2]
[340604752,1729523445125,-500.0,0.00016438,2]
[340604753,1729523445136,-500.0,0.00016438,2]
[340604754,1729523445147,-500.0,0.00016438,2]
[340604755,1729523445157,-500.0,0.00016438,2]
[340604756,1729523445167,-500.0,0.00016438,2]
[340604757,1729523445177,-500.0,0.00016438,2]
[340604758,1729523445188,-434.94224412,0.00016438,2]
[340604759,1729523445198,-555.21770202,0.00016438,2]
[340604767,1729523446729,-261.31229798,0.00016438,2]
[340604768,1729523446739,-500.0,0.00016438,2]
[340604769,1729523446749,-500.0,0.00016438,2]
[340604770,1729523446759,-76.78770202,0.00016438,2]
[340604771,1729523446772,-423.21229798,0.00016438,2]
[340604772,1729523446782,-500.0,0.00016438,2]
[340604774,1729523446792,-1811.77,0.00016438,2]
[340604776,1729523446801,-509.47770946,0.00016438,2]
[340604778,1729523446810,-1755.27,0.00016438,2]
[340604779,1729523447042,-252.645245,0.00016438,2]
[340604780,1729523447055,-516.5148984,0.00016438,2]
[340604781,1729523447065,-500.0,0.00016438,2]
[340604782,1729523447074,-500.0,0.00016438,2]
[340604783,1729523447086,-500.0,0.00016438,2]
[340604784,1729523447095,-165.14769849,0.00016438,2]
[340604785,1729523447106,-151.0,0.00016438,2]
[340604786,1729523447115,-500.0,0.00016438,2]
[340604787,1729523447124,-151.0,0.00016438,2]
[340604788,1729523447134,-151.0,0.00016438,2]
[340604789,1729523447143,-151.0,0.00016438,2]
[340604790,1729523447152,-500.0,0.00016438,2]
[340604791,1729523447162,-2698.53,0.00016438,2]
[340604792,1729523447171,-1655.43215067,0.00016438,2]
[340604793,1729523447183,-389.28784933,0.00016438,2]
[340604794,1729523447192,-155.21215067,0.00016438,2]
[340604795,1729523474058,200.55125478,0.00010959,2]
[340604796,1729523474085,657.15874522,0.00010959,2]
[340604799,1729524405329,-155.16,0.00010959,2]
[340604800,1729524405351,-14.13422994,0.00010959,2]
[340604801,1729524425088,-761.71577006,0.00010959,2]
[340604802,1729524425110,-162.0,0.0001504,2]
[340604803,1729524425134,-182.579404,0.00015457,2]
[340604804,1729524425155,-54.69719973,0.00015679,2]
[340604805,1729524426120,-410.30393065,0.00015679,2]
[340604806,1729524426143,-182.579404,0.0001586,2]
[340604807,1729524426164,-500.0,0.00015865,2]
[340604808,1729524426184,-1005.26847516,0.00016,2]
[340604809,1729524426204,-297.79756194,0.000162,2]
[340604810,1729524444094,-2.20243806,0.000162,2]
[340604811,1729524444116,-300.0,0.000162,2]
[340604812,1729524444140,-8890.20115101,0.00016201,2]
[340604813,1729524444163,-182.579404,0.00016262,2]
[340604814,1729524444184,-519.71847615,0.00016308,2]
[340604820,1729524547114,-839.91717286,0.000125,2]
[340604851,1729524632723,-1702.17515189,0.00016318,2]
[340604852,1729524632732,-567.21150558,0.00016338,2]
[340604853,1729524632743,-500.0,0.00016365,2]
[340604854,1729524632752,-150.112233,0.000164,2]
[340604855,1729524632762,-155.0,0.00016417,2]
[340604856,1729524632772,-500.0,0.00016418,2]
[340604857,1729524632781,-361.1902553,0.00016418,2]
[340604858,1729524632791,-32941.7555751,0.00016418,2]
[340604859,1729524632800,-42851.5278186,0.00016418,2]
[340604861,1729524632816,-321.32776935,0.00016427,2]
[340604863,1729524632825,-15968.76909693,0.00016428,2]
[340604866,1729524632838,-16972.98647817,0.00016428,2]
[340604867,1729524632847,-42851.5278186,0.00016428,2]
[340604868,1729524632862,-61588.08420523,0.00016428,2]
[340604869,1729524632874,-1086.99660301,0.00016428,2]
[340604898,1729524640768,-694.8998,0.00016428,2]
[340604900,1729524640780,-52770.45529122,0.00016428,2]
[340604905,1729524640820,-668.58,0.00016428,2]
[340604910,1729524640864,-3855.23469483,0.00016428,2]
[340604916,1729524640911,-6698.0,0.00016428,2]
[340604921,1729524640952,-63257.26157891,0.00016428,2]
[340604924,1729524640964,-7031.0212778,0.00016428,2]
[340604926,1729524640974,-214257.639093,0.00016428,2]
[340604928,1729524640983,-51481.43472284,0.00016438,2]
[340604930,1729524640994,-16055.72243029,0.00016438,2]
[340604932,1729524641004,-500.0,0.00016438,2]
[340604934,1729524641015,-500.0,0.00016438,2]
[340604936,1729524641024,-500.0,0.00016438,2]
[340604938,1729524641035,-500.0,0.00016438,2]
[340604940,1729524641045,-500.0,0.00016438,2]
[340604942,1729524641055,-510.88579333,0.00016438,2]
[340604944,1729524641064,-500.0,0.00016438,2]
[340604945,1729524641074,-500.0,0.00016438,2]
[340604947,1729524641087,-447.55990558,0.00016438,2]
[340604949,1729524641097,-299.20465351,0.00016438,2]
[340604951,1729524641109,-500.0,0.00016438,2]
[340604953,1729524641118,-500.0,0.00016438,2]
[340604955,1729524641128,-500.0,0.00016438,2]
[340604957,1729524641138,-151.0,0.00016438,2]
[340604959,1729524641148,-151.0,0.00016438,2]
[340604961,1729524641158,-1219.68,0.00016438,2]
[340604963,1729524641167,-1736.28,0.00016438,2]
[340604965,1729524641177,-500.0,0.00016438,2]
[340604967,1729524641187,-500.0,0.00016438,2]
[340604969,1729524641196,-500.0,0.00016438,2]
[340604971,1729524641206,-500.0,0.00016438,2]
[340604973,1729524641216,-500.0,0.00016438,2]
[340604975,1729524641225,-500.0,0.00016438,2]
[340604977,1729524641235,-1265.65,0.00016438,2]
[340604979,1729524641245,-500.0,0.00016438,2]
[340604981,1729524641255,-500.0,0.00016438,2]
[340604983,1729524641265,-1381.84,0.00016438,2]
[340604985,1729524641275,-500.0,0.00016438,2]
[340604987,1729524641285,-500.0,0.00016438,2]
[340604989,1729524641295,-500.0,0.00016438,2]
[340604991,1729524641305,-669.07,0.00016438,2]
[340604993,1729524641314,-556.45722687,0.00016438,2]
[340604995,1729524641323,-500.0,0.00016438,2]
[340604997,1729524641333,-500.0,0.00016438,2]
[340604999,1729524641343,-500.0,0.00016438,2]
[340605001,1729524641355,-1932.16,0.00016438,2]
[340605003,1729524641366,-500.0,0.00016438,2]
[340605005,1729524641375,-370.06861828,0.00016438,2]
[340605007,1729524641385,-151.0,0.00016438,2]
[340605009,1729524641394,-500.0,0.00016438,2]
[340605011,1729524641405,-545.4160801,0.00016438,2]
[340605013,1729524641415,-500.0,0.00016438,2]
[340605015,1729524641425,-500.0,0.00016438,2]
[340605017,1729524641436,-924.74,0.00016438,2]
[340605019,1729524641445,-937.4,0.00016438,2]
[340605021,1729524641456,-500.0,0.00016438,2]
[340605023,1729524641466,-500.0,0.00016438,2]
[340605026,1729524641478,-500.0,0.00016438,2]
[340605028,1729524641488,-500.0,0.00016438,2]
[340605029,1729524641498,-1291.35,0.00016438,2]
[340605031,1729524641507,-554.07233275,0.00016438,2]
[340605033,1729524641517,-1618.23,0.00016438,2]
[340605035,1729524641527,-500.0,0.00016438,2]
[340605037,1729524641537,-500.0,0.00016438,2]
[340605039,1729524641547,-500.0,0.00016438,2]
[340605041,1729524641556,-500.0,0.00016438,2]
[340605043,1729524641566,-961.67,0.00016438,2]
[340605045,1729524641576,-500.0,0.00016438,2]
[340605047,1729524641586,-500.0,0.00016438,2]
[340605049,1729524641596,-500.0,0.00016438,2]
[340605051,1729524641607,-694.09,0.00016438,2]
[340605053,1729524641616,-500.0,0.00016438,2]
[340605055,1729524641625,-500.0,0.00016438,2]
[340605057,1729524641634,-500.0,0.00016438,2]
[340605059,1729524641644,-508.51436058,0.00016438,2]
[340605061,1729524641653,-500.0,0.00016438,2]
[340605063,1729524641663,-1278.32,0.00016438,2]
[340605065,1729524641672,-639.56029238,0.00016438,2]
[340605067,1729524641686,-500.0,0.00016438,2]
[340605069,1729524641696,-500.0,0.00016438,2]
[340605071,1729524641706,-500.0,0.00016438,2]
[340605073,1729524641716,-500.0,0.00016438,2]
[340605075,1729524641726,-1009.69,0.00016438,2]
[340605077,1729524641736,-500.0,0.00016438,2]
[340605079,1729524641746,-500.0,0.00016438,2]
[340605081,1729524641755,-500.0,0.00016438,2]
[340605083,1729524641765,-500.0,0.00016438,2]
[340605085,1729524641775,-500.0,0.00016438,2]
[340605086,1729524641784,-205.65,0.00016438,2]
[340605088,1729524641794,-500.0,0.00016438,2]
[340605090,1729524641804,-500.0,0.00016438,2]
[340605092,1729524641814,-500.0,0.00016438,2]
[340605094,1729524641824,-744.54,0.00016438,2]
[340605096,1729524641833,-500.0,0.00016438,2]
[340605098,1729524641843,-500.0,0.00016438,2]
[340605100,1729524641852,-500.0,0.00016438,2]
[340605102,1729524641863,-959.1,0.00016438,2]
[340605104,1729524641873,-547.81355773,0.00016438,2]
[340605106,1729524641882,-500.0,0.00016438,2]
[340605108,1729524641892,-500.0,0.00016438,2]
[340605110,1729524641902,-708.92,0.00016438,2]
[340605112,1729524641912,-512.86,0.00016438,2]
[340605114,1729524641922,-500.0,0.00016438,2]
[340605116,1729524641932,-805.93,0.00016438,2]
[340605118,1729524641942,-500.0,0.00016438,2]
[340605120,1729524641952,-500.0,0.00016438,2]
[340605122,1729524641962,-321.44456386,0.00016438,2]
[340605124,1729524641972,-500.0,0.00016438,2]
[340605126,1729524641982,-221.97215194,0.00016438,2]
[340605128,1729524641991,-1769.81,0.00016438,2]
[340605130,1729524642002,-500.0,0.00016438,2]
[340605132,1729524642012,-597.2034357,0.00016438,2]
[340605134,1729524642022,-2562.11,0.00016438,2]
[340605136,1729524642031,-500.0,0.00016438,2]
[340605138,1729524642040,-500.0,0.00016438,2]
[340605140,1729524642051,-500.0,0.00016438,2]
[340605142,1729524642061,-599.32,0.00016438,2]
[340605144,1729524642071,-599.24932482,0.00016438,2]
[340605146,1729524642082,-500.0,0.00016438,2]
[340605148,1729524642093,-500.0,0.00016438,2]
[340605150,1729524642103,-500.0,0.00016438,2]
[340605152,1729524642113,-187.24454827,0.00016438,2]
[340605154,1729524642123,-804.51,0.00016438,2]
[340605156,1729524642132,-500.0,0.00016438,2]
[340605158,1729524642142,-259.8842527,0.00016438,2]
[340605160,1729524642151,-500.0,0.00016438,2]
[340605162,1729524642163,-592.78,0.00016438,2]
[340605164,1729524642172,-500.0,0.00016438,2]
[340605166,1729524642182,-500.0,0.00016438,2]
[340605168,1729524642191,-500.0,0.00016438,2]
[340605170,1729524642200,-204.1002286,0.00016438,2]
[340605172,1729524642210,-911.47,0.00016438,2]
[340605174,1729524642219,-500.0,0.00016438,2]
[340605175,1729524642228,-500.0,0.00016438,2]
[340605176,1729524642237,-500.0,0.00016438,2]
[340605177,1729524642246,-500.0,0.00016438,2]
[340605178,1729524642256,-500.0,0.00016438,2]
[340605179,1729524642266,-500.0,0.00016438,2]
[340605180,1729524642275,-500.0,0.00016438,2]
[340605181,1729524642284,-573.10261298,0.00016438,2]
[340605182,1729524642293,-500.0,0.00016438,2]
[340605183,1729524642303,-767.12,0.00016438,2]
[340605184,1729524642313,-657.27,0.00016438,2]
[340605185,1729524642322,-500.0,0.00016438,2]
[340605186,1729524642331,-500.0,0.00016438,2]
[340605187,1729524642340,-500.0,0.00016438,2]
[340605188,1729524642350,-1952.09,0.00016438,2]
[340605189,1729524642360,-500.0,0.00016438,2]
[340605190,1729524642370,-500.0,0.00016438,2]
[340605191,1729524642379,-1357.24,0.00016438,2]
[340605192,1729524642388,-500.0,0.00016438,2]
[340605193,1729524642398,-722.27,0.00016438,2]
[340605194,1729524642407,-1011.79,0.00016438,2]
[340605195,1729524642416,-500.77455274,0.00016438,2]
[340605196,1729524642426,-500.0,0.00016438,2]
[340605197,1729524642435,-500.0,0.00016438,2]
[340605198,1729524642444,-479.98010519,0.00016438,2]
[340605199,1729524642454,-500.0,0.00016438,2]
[340605200,1729524642463,-500.0,0.00016438,2]
[340605201,1729524642473,-570.6707957,0.00016438,2]
[340605202,1729524642482,-500.0,0.00016438,2]
[340605203,1729524642492,-746.33,0.00016438,2]
[340605204,1729524642501,-299.57837491,0.00016438,2]
[340605205,1729524642511,-849.51,0.00016438,2]
[340605206,1729524642520,-500.0,0.00016438,2]
[340605207,1729524642530,-500.0,0.00016438,2]
[340605208,1729524642540,-500.0,0.00016438,2]
[340605209,1729524642549,-1070.72,0.00016438,2]
[340605210,1729524642558,-500.0,0.00016438,2]
[340605211,1729524642567,-500.0,0.00016438,2]
[340605212,1729524642576,-500.0,0.00016438,2]
[340605213,1729524642586,-1143.59,0.00016438,2]
[340605214,1729524642596,-1567.34,0.00016438,2]
[340605215,1729524642606,-500.0,0.00016438,2]
[340605216,1729524642615,-500.0,0.00016438,2]
[340605217,1729524642625,-500.0,0.00016438,2]
[340605218,1729524642635,-500.0,0.00016438,2]
[340605219,1729524642645,-500.0,0.00016438,2]
[340605220,1729524642655,-500.0,0.00016438,2]
[340605221,1729524642664,-500.0,0.00016438,2]
[340605222,1729524642674,-683.45,0.00016438,2]
[340605223,1729524642685,-500.0,0.00016438,2]
[340605224,1729524642695,-1812.48,0.00016438,2]
[340605225,1729524642704,-545.23962103,0.00016438,2]
[340605226,1729524642714,-500.0,0.00016438,2]
[340605227,1729524642723,-500.0,0.00016438,2]
[340605228,1729524642733,-500.0,0.00016438,2]
[340605229,1729524642742,-500.0,0.00016438,2]
[340605230,1729524642752,-500.0,0.00016438,2]
[340605231,1729524642761,-500.0,0.00016438,2]
[340605232,1729524642770,-500.0,0.00016438,2]
[340605233,1729524642780,-500.0,0.00016438,2]
[340605234,1729524642789,-775.15,0.00016438,2]
[340605235,1729524642799,-500.0,0.00016438,2]
[340605236,1729524642808,-1959.53,0.00016438,2]
[340605237,1729524642820,-500.0,0.00016438,2]
[340605238,1729524642829,-500.0,0.00016438,2]
[340605239,1729524642838,-500.0,0.00016438,2]
[340605240,1729524642847,-986.56,0.00016438,2]
[340605241,1729524642859,-903.5,0.00016438,2]
[340605242,1729524642868,-202.83670557,0.00016438,2]
[340605243,1729524642878,-1360.79,0.00016438,2]
[340605244,1729524642887,-500.0,0.00016438,2]
[340605245,1729524642897,-491.14728414,0.00016438,2]
[340605246,1729524642906,-500.0,0.00016438,2]
[340605247,1729524642916,-716.98,0.00016438,2]
[340605248,1729524642925,-500.0,0.00016438,2]
[340605249,1729524642934,-500.0,0.00016438,2]
[340605250,1729524642944,-1014.96,0.00016438,2]
[340605251,1729524642954,-500.0,0.00016438,2]
[340605252,1729524642964,-184.2546354,0.00016438,2]
[340605253,1729524642973,-500.0,0.00016438,2]
[340605254,1729524642983,-500.0,0.00016438,2]
[340605255,1729524642992,-500.0,0.00016438,2]
[340605256,1729524643001,-500.0,0.00016438,2]
[340605257,1729524643011,-505.11202141,0.00016438,2]
[340605258,1729524643021,-1711.89,0.00016438,2]
[340605259,1729524643030,-266.43371449,0.00016438,2]
[340605260,1729524643040,-500.0,0.00016438,2]
[340605261,1729524643049,-2024.36,0.00016438,2]
[340605262,1729524643059,-500.0,0.00016438,2]
[340605263,1729524643068,-752.53,0.00016438,2]
[340605264,1729524643078,-500.0,0.00016438,2]
[340605265,1729524643091,-500.0,0.00016438,2]
[340605266,1729524643100,-500.0,0.00016438,2]
[340605267,1729524643111,-571.352854,0.00016438,2]
[340605268,1729524643120,-785.06,0.00016438,2]
[340605269,1729524643130,-500.0,0.00016438,2]
[340605270,1729524643140,-500.0,0.00016438,2]
[340605271,1729524643149,-500.0,0.00016438,2]
[340605272,1729524643159,-500.0,0.00016438,2]
[340605273,1729524643168,-500.0,0.00016438,2]
[340605274,1729524643178,-1125.68,0.00016438,2]
[340605275,1729524643187,-500.0,0.00016438,2]
[340605276,1729524643196,-505.56,0.00016438,2]
[340605277,1729524643206,-500.0,0.00016438,2]
[340605278,1729524643216,-500.0,0.00016438,2]
[340605279,1729524643225,-512.14500545,0.00016438,2]
[340605280,1729524643234,-956.55,0.00016438,2]
[340605281,1729524643244,-500.0,0.00016438,2]
[340605282,1729524643253,-500.0,0.00016438,2]
[340605283,1729524643262,-500.0,0.00016438,2]
[340605284,1729524643271,-404.67113188,0.00016438,2]
[340605285,1729524643280,-500.0,0.00016438,2]
[340605286,1729524643290,-500.0,0.00016438,2]
[340605287,1729524643300,-500.0,0.00016438,2]
[340605288,1729524643310,-500.0,0.00016438,2]
[340605289,1729524643320,-500.0,0.00016438,2]
[340605290,1729524643330,-1459.72,0.00016438,2]
[340605291,1729524643340,-797.21,0.00016438,2]
[340605292,1729524643350,-500.0,0.00016438,2]
[340605293,1729524643363,-926.23,0.00016438,2]
[340605294,1729524643373,-500.0,0.00016438,2]
[340605295,1729524643383,-2135.22,0.00016438,2]
[340605296,1729524643394,-500.0,0.00016438,2]
[340605297,1729524643404,-189.844295,0.00016438,2]
[340605298,1729524643414,-189.844295,0.00016438,2]
[340605299,1729524643424,-746.65,0.00016438,2]
[340605300,1729524643434,-189.844295,0.00016438,2]
[340605301,1729524643443,-2166.29,0.00016438,2]
[340605302,1729524643453,-189.844295,0.00016438,2]
[340605303,1729524643464,-353.39670182,0.00016438,2]
[340605304,1729524643474,-500.0,0.00016438,2]
[340605305,1729524643484,-500.0,0.00016438,2]
[340605306,1729524643494,-189.844295,0.00016438,2]
[340605307,1729524643503,-500.0,0.00016438,2]
[340605308,1729524643513,-189.844295,0.00016438,2]
[340605309,1729524643523,-189.844295,0.00016438,2]
[340605310,1729524643533,-189.844295,0.00016438,2]
[340605311,1729524643543,-500.0,0.00016438,2]
[340605312,1729524643553,-500.0,0.00016438,2]
[340605313,1729524643562,-500.0,0.00016438,2]
[340605314,1729524643571,-500.0,0.00016438,2]
[340605315,1729524643581,-709.25,0.00016438,2]
[340605316,1729524643590,-709.25,0.00016438,2]
[340605317,1729524643600,-709.25,0.00016438,2]
[340605318,1729524643611,-709.25,0.00016438,2]
[340605319,1729524643621,-709.25,0.00016438,2]
[340605320,1729524643630,-637.54,0.00016438,2]
[340605321,1729524643639,-500.0,0.00016438,2]
[340605322,1729524643649,-709.25,0.00016438,2]
[340605323,1729524643658,-692.15,0.00016438,2]
[340605324,1729524643667,-709.25,0.00016438,2]
[340605325,1729524643677,-709.25,0.00016438,2]
[340605326,1729524643688,-709.25,0.00016438,2]
[340605327,1729524643697,-500.0,0.00016438,2]
[340605328,1729524643707,-709.25,0.00016438,2]
[340605329,1729524643717,-709.25,0.00016438,2]
[340605330,1729524643727,-709.25,0.00016438,2]
[340605332,1729524643737,-709.25,0.00016438,2]
[340605334,1729524643747,-709.25,0.00016438,2]
[340605336,1729524643757,-709.25,0.00016438,2]
[340605337,1729524643766,-709.25,0.00016438,2]
[340605338,1729524643776,-709.25,0.00016438,2]
[340605339,1729524643785,-766.43,0.00016438,2]
[340605340,1729524643795,-542.45,0.00016438,2]
[340605341,1729524643804,-709.25,0.00016438,2]
[340605342,1729524643814,-2054.57,0.00016438,2]
[340605343,1729524643823,-709.25,0.00016438,2]
[340605344,1729524643832,-709.25,0.00016438,2]
[340605345,1729524643841,-709.25,0.00016438,2]
[340605346,1729524643851,-709.25,0.00016438,2]
[340605347,1729524643862,-709.25,0.00016438,2]
[340605348,1729524643871,-709.34983704,0.00016438,2]
[340605349,1729524643881,-500.0,0.00016438,2]
[340605350,1729524643891,-500.0,0.00016438,2]
[340605351,1729524643901,-500.0,0.00016438,2]
[340605352,1729524643910,-212.96479063,0.00016438,2]
[340605353,1729524643920,-1840.9,0.00016438,2]
[340605354,1729524643930,-1235.24,0.00016438,2]
[340605355,1729524643939,-804.67,0.00016438,2]
[340605358,1729524643949,-500.0,0.00016438,2]
[340605361,1729524643958,-500.0,0.00016438,2]
[340605363,1729524643968,-500.0,0.00016438,2]
[340605365,1729524643977,-541.63004014,0.00016438,2]
[340605366,1729524643987,-151.0,0.00016438,2]
[340605367,1729524643997,-500.0,0.00016438,2]
[340605368,1729524644007,-151.0,0.00016438,2]
[340605369,1729524644016,-151.0,0.00016438,2]
[340605370,1729524644026,-151.0,0.00016438,2]
[340605371,1729524644036,-500.0,0.00016438,2]
[340605372,1729524644046,-1861.45,0.00016438,2]
[340605373,1729524644056,-500.0,0.00016438,2]
[340605375,1729524644066,-305.22878819,0.00016438,2]
[340605377,1729524644076,-213.07866943,0.00016438,2]
[340605378,1729524644089,-500.0,0.00016438,2]
[340605379,1729524644100,-542.84091426,0.00016438,2]
[340605380,1729524644111,-471.76501859,0.00016438,2]
[340605381,1729524644122,-500.0,0.00016438,2]
[340605382,1729524644131,-500.0,0.00016438,2]
[340605384,1729524644141,-503.07827068,0.00016438,2]
[340605385,1729524644150,-1482.02,0.00016438,2]
[340605387,1729524644163,-1499.84,0.00016438,2]
[340605388,1729524644173,-500.0,0.00016438,2]
[340605389,1729524644182,-500.0,0.00016438,2]
[340605390,1729524644192,-500.0,0.00016438,2]
[340605391,1729524644201,-512.71989966,0.00016438,2]
[340605392,1729524644210,-1454.72,0.00016438,2]
[340605393,1729524644220,-500.0,0.00016438,2]
[340605394,1729524644229,-500.0,0.00016438,2]
[340605395,1729524644239,-497.78967187,0.00016438,2]
[340605396,1729524644250,-2486.78,0.00016438,2]
[340605397,1729524644259,-500.0,0.00016438,2]
[340605398,1729524644268,-2521.05,0.00016438,2]
[340605399,1729524644279,-529.08104172,0.00016438,2]
[340605400,1729524644289,-1755.19,0.00016438,2]
[340605401,1729524644299,-500.0,0.00016438,2]
[340605403,1729524644309,-598.88,0.00016438,2]
[340605405,1729524644319,-501.36486751,0.00016438,2]
[340605407,1729524644330,-215.97033511,0.00016438,2]
[340605408,1729524644341,-500.0,0.00016438,2]
[340605409,1729524644351,-1243.31,0.00016438,2]
[340605410,1729524644362,-500.0,0.00016438,2]
[340605411,1729524644371,-1718.33,0.00016438,2]
[340605412,1729524644381,-500.0,0.00016438,2]
[340605413,1729524644391,-962.24,0.00016438,2]
[340605414,1729524644401,-2896.23,0.00016438,2]
[340605415,1729524644411,-1456.18,0.00016438,2]
[340605416,1729524644421,-500.0,0.00016438,2]
[340605417,1729524644431,-1064.3,0.00016438,2]
[340605418,1729524644440,-1856.39,0.00016438,2]
[340605419,1729524644449,-566.92533978,0.00016438,2]
[340605420,1729524644459,-500.0,0.00016438,2]
[340605421,1729524644468,-500.0,0.00016438,2]
[340605422,1729524644673,-855.78,0.00016438,2]
[340605423,1729524644685,-1127.5,0.00016438,2]
[340605424,1729524644696,-501.38190217,0.00016438,2]
[340605425,1729524644707,-500.0,0.00016438,2]
[340605426,1729524644717,-500.0,0.00016438,2]
[340605427,1729524644727,-500.0,0.00016438,2]
[340605428,1729524644737,-832.48,0.00016438,2]
[340605429,1729524644748,-1030.25,0.00016438,2]
[340605430,1729524644758,-1092.01,0.00016438,2]
[340605431,1729524644768,-500.0,0.00016438,2]
[340605432,1729524644778,-913.39,0.00016438,2]
[340605433,1729524644788,-518.95,0.00016438,2]
[340605434,1729524644799,-500.0,0.00016438,2]
[340605435,1729524644808,-768.4,0.00016438,2]
[340605436,1729524644819,-500.0,0.00016438,2]
[340605437,1729524644829,-500.0,0.00016438,2]
[340605438,1729524644839,-1598.66,0.00016438,2]
[340605439,1729524644850,-533.11011294,0.00016438,2]
[340605440,1729524644863,-500.0,0.00016438,2]
[340605441,1729524644874,-1723.9,0.00016438,2]
[340605442,1729524644884,-500.0,0.00016438,2]
[340605443,1729524644894,-500.0,0.00016438,2]
[340605444,1729524644904,-1812.14,0.00016438,2]
[340605445,1729524644914,-500.0,0.00016438,2]
[340605446,1729524644924,-500.0,0.00016438,2]
[340605447,1729524644933,-500.0,0.00016438,2]
[340605448,1729524644943,-501.46177585,0.00016438,2]
[340605449,1729524644953,-500.0,0.00016438,2]
[340605450,1729524644962,-428.48039697,0.00016438,2]
[340605451,1729524644972,-500.0,0.00016438,2]
[340605452,1729524644982,-1835.3,0.00016438,2]
[340605453,1729524644992,-500.0,0.00016438,2]
[340605454,1729524645001,-2271.92,0.00016438,2]
[340605455,1729524645011,-500.0,0.00016438,2]
[340605456,1729524645021,-1321.93,0.00016438,2]
[340605457,1729524645032,-996.19,0.00016438,2]
[340605458,1729524645042,-500.0,0.00016438,2]
[340605459,1729524645052,-1573.51,0.00016438,2]
[340605460,1729524645062,-500.0,0.00016438,2]
[340605461,1729524645073,-500.0,0.00016438,2]
[340605462,1729524645087,-1848.88,0.00016438,2]
[340605463,1729524645098,-500.0,0.00016438,2]
[340605464,1729524645109,-528.72844537,0.00016438,2]
[340605465,1729524645118,-500.0,0.00016438,2]
[340605466,1729524645127,-500.0,0.00016438,2]
[340605467,1729524645138,-500.0,0.00016438,2]
[340605468,1729524645147,-500.0,0.00016438,2]
[340605469,1729524645157,-500.0,0.00016438,2]
[340605470,1729524645167,-500.0,0.00016438,2]
[340605471,1729524645177,-500.0,0.00016438,2]
[340605472,1729524645188,-501.05908773,0.00016438,2]
[340605473,1729524645197,-500.0,0.00016438,2]
[340605474,1729524645208,-500.0,0.00016438,2]
[340605475,1729524645218,-1617.93,0.00016438,2]
[340605476,1729524645228,-500.0,0.00016438,2]
[340605477,1729524645238,-500.0,0.00016438,2]
[340605478,1729524645248,-500.0,0.00016438,2]
[340605479,1729524645258,-598.79,0.00016438,2]
[340605480,1729524645269,-254.69069695,0.00016438,2]
[340605503,1729524646958,-245.30930305,0.00016438,2]
[340605504,1729524646968,-1620.76,0.00016438,2]
[340605505,1729524646977,-140.06069695,0.00016438,2]
[340605506,1729524648817,178.86142714,0.00010959,2]
[340605507,1729524648838,170.8451262,0.00010959,2]
[340605508,1729524648861,336.43344666,0.00010959,2]
[340605512,1729525300861,1000.0,0.00022,60]
[340605514,1729525469108,10000.0,0.00022,60]
[340605515,1729525517860,10000.0,0.00022,60]